Cogmind - Beta 13 @@@ ROGUE MODE // 2024.03.17 @ 15:42:18 Player: Darsidian Result: Destroyed by G-34 Mercenary with Small Laser Performance ------------- Evolutions (1) 500 Regions Visited (2) 400 Robots Destroyed (27) 135 Value Destroyed (516) 516 Prototype IDs (2) 40 Alien Tech Used (0) 0 Bonus (0) 0 TOTAL SCORE: 1591 Bonus ------- None Cogmind --------- Core Integrity 0/400 Matter 300/300 Energy 100/100 System Corruption 7% Temperature Cool (33) Movement Core (1400) Ox27 Location -9/Materials Parts ------- > --- POWER (1) -------- (None) > --- PROPULSION (3) --- (None) > --- UTILITY (3) ------ Huge Storage Unit > --- WEAPON (2) ------- Flail > --- INVENTORY (25) --- Heavy Ion Engine Large Storage Unit Structural Scanner Signal Interpreter Transport Network Coupler Improved Targeting Computer Datajack Peak State ------------ > --- POWER ------------ Heavy Ion Engine > --- PROPULSION ------- Wheel Wheel Wheel > --- UTILITY ---------- Huge Storage Unit Structural Scanner Sensor Array > --- WEAPON ----------- Improved EM Shotgun Improved EM Shotgun > --- INVENTORY -------- Ion Engine Ion Engine Wheel Large Storage Unit Signal Interpreter ECM Suite Improved EM Shotgun Grenade Launcher Datajack Flail [Rating: 16] Favorites ----------- Power Ion Engine Engine Ion Engine Propulsion Wheel Wheel Wheel Utility Structural Scanner Device Structural Scanner Storage Huge Storage Unit Weapon Improved EM Shotgun Energy Gun Improved EM Shotgun Ballistic Gun Light Assault Rifle Launcher Grenade Launcher Impact Weapon Flail Build | -11 -10 -9 ------- Run | Yrd Mat Mat Slots Evolved 2 | . . 2 Power . | . . . Propulsion 1 | . . 1 Utility 1 | . . 1 Weapon . | . . . Parts Attached 36 | 8 13 15 Power 5 | 1 2 2 Engine 5 | 1 2 2 Core . | . . . Reactor . | . . . Propulsion 9 | 2 . 7 Treads . | . . . Leg . | . . . Wheel 9 | 2 . 7 Hover . | . . . Flight . | . . . Utility 11 | 2 6 3 Device 6 | 1 3 2 Storage 5 | 1 3 1 Processor . | . . . Hackware . | . . . Protection . | . . . Artifact . | . . . Weapon 11 | 3 5 3 Energy Gun 7 | 2 4 1 Energy Cannon . | . . . Ballistic Gun 1 | 1 . . Ballistic Cannon . | . . . Launcher 1 | . . 1 Special Weapon . | . . . Impact Weapon 2 | . 1 1 Slashing Weapon . | . . . Piercing Weapon . | . . . Special Melee Weapon . | . . . Unidentified Prototypes 2 | . 1 1 Parts Lost 15 | . . 15 Power 2 | . . 2 Propulsion 7 | . . 7 Utility 2 | . . 2 Weapon 4 | . . 4 Highest Loss Streak 13 | . . 13 To Critical Strikes 1 | . . 1 Average Slot Usage (%) 97 | . 100 94 Engine 12 | . 14 10 Wheel 29 | . 28 30 Device 16 | . 14 19 Storage 12 | . 14 11 Energy Gun 22 | . 25 19 Naked Turns . | . . . Heaviest Build 97 | 14 92 97 Greatest Support 36 | 20 20 36 Greatest Overweight (x) 29 | 1 4 29 Average Overweight (x) 1 | . . 2 Largest Inventory Capacity 25 | 8 25 25 Average Capacity 16 | 6 9 25 Most Carried 14 | 5 11 14 Average Carried 9 | 2 8 11 Final Capacity 25 | 8 25 25 Final Carried 11 | 5 11 7 Class Distribution -------------------- 100% | Mutant Dominant Class ---------------- Mutant | -10/Materials Mutant | -9/Materials Resources | -11 -10 -9 ----------- Run | Yrd Mat Mat Matter Collected 549 | 291 108 150 Remotely . | . . . Salvage Created 1194 | 132 377 685 Parts 61 | 7 27 27 Haulers Intercepted 3 | . 2 1 Recyclers Shooed 3 | . 1 2 Parts Field Recycled . | . . . Retrieved Matter . | . . . Parts Self-Destructed . | . . . Prevented . | . . . Kills | -11 -10 -9 ------- Run | Yrd Mat Mat Combat Hostiles Destroyed 9 | . 2 7 Guns 5 | . 2 3 AOE 3 | . . 3 Classes Destroyed 10 | 2 5 3 Builder 1 | . 1 . Tunneler 2 | 2 . . Hauler 3 | . 2 1 Recycler 5 | 1 1 3 Mechanic 1 | . . 1 Operator 1 | . 1 . Watcher 5 | . 3 2 Grunt 7 | . 2 5 Brawler 1 | . . 1 Sentry 1 | . . 1 Best Kill Streak 6 | 1 3 6 Combat Bots Only 3 | . 1 3 Max Kills in Single Turn 2 | 1 1 2 Gunslinging . | . . . Exploded 2 | . . 2 Melee . | . . . Uniques/NPCs Destroyed . | . . . Combat | -11 -10 -9 -------- Run | Yrd Mat Mat Hostile Shots Fired 94 | . 3 91 Missed 19 | . . 19 Damage Taken 1314 | . 33 1281 Core 415 | . 12 403 Absorbed by Shields . | . . . Core Remaining (%) 97 | 100 95 . Volleys Fired 50 | 11 17 22 Largest 2 | 2 2 2 Hottest 90 | 70 90 90 Shots Fired 98 | 22 34 42 Gun 97 | 22 34 41 Cannon . | . . . Launcher 1 | . . 1 Special . | . . . Kinetic 11 | 11 . . Thermal 11 | 11 . . Explosive 1 | . . 1 Electromagnetic 75 | . 34 41 Robot Hit Streak 14 | 6 9 14 Robot Miss Streak 2 | 1 2 2 Penetration Max . | . . . Secondary Targets . | . . . Shots Hit Robots 79 | 13 26 40 Core Hits 45 | 5 15 25 Critical Kills . | . . . Critical Parts Destroyed . | . . . Critical Strikes . | . . . Melee Attacks 2 | . 1 1 Impact 2 | . 1 1 Slashing . | . . . Piercing . | . . . Sneak Attacks . | . . . Combat Hostiles . | . . . Follow-up Attacks . | . . . Damage Inflicted 1949 | 110 508 1331 Guns 1239 | 110 508 621 Cannons . | . . . Explosions 671 | . . 671 Melee 39 | . . 39 Ramming . | . . . Kinetic 61 | 61 . . Thermal 469 | 49 . 420 Explosive 251 | . . 251 Electromagnetic 1129 | . 508 621 Impact 39 | . . 39 Slashing . | . . . Piercing . | . . . Highest Corruption 7 | . 3 7 Average Corruption 3 | . 3 7 Corruption Purged . | . . . Corruption Blocked . | . . . Effects 9 | . 6 3 Message Errors 1 | . . 1 Matter Fused 2 | . 2 . Heat Flow Errors 2 | . . 2 Energy Discharges 1 | . 1 . Data Loss (minor) 3 | . 3 . Overload Shots . | . . . Overflow Damage 70 | . . 70 Projectiles . | . . . Explosions 53 | . . 53 Melee 17 | . . 17 Knockbacks . | . . . Impact . | . . . Kinetic . | . . . Secondary . | . . . Self-Inflicted Damage 281 | . . 281 Shots 6 | . . 6 Rammed . | . . . Targets Rammed . | . . . Kicked . | . . . Crushed . | . . . Highest Temperature 271 | 70 72 271 Average Temperature 66 | 29 30 100 Received Heat Transfer 381 | . 18 363 Siege Activations . | . . . Robots Corrupted 1 | . . 1 Combat Hostiles 1 | . . 1 Parts Fried 11 | . 6 5 Impact Corruptions 1 | . . 1 Robots Melted . | . . . Combat Hostiles . | . . . Parts Melted . | . . . Heat Transferred 798 | 148 . 650 Parts Sabotaged . | . . . Parts Stolen . | . . . Parts Stripped . | . . . Power Chain Reactions 6 | . . 6 Alert | -11 -10 -9 ------- Run | Yrd Mat Mat Peak Influence 180 | 15 109 180 Initial 21 | . 9 21 Average 57 | 7 43 83 Maximum Alert Level . | . . . Low Security (%) 100 | 100 100 100 Level 1 . | . . . Level 2 . | . . . Level 3 . | . . . Level 4 . | . . . Level 5 . | . . . High Security . | . . . Max Security . | . . . Squads Dispatched 1 | . 1 . Investigation . | . . . Extermination . | . . . Reinforcement 1 | . 1 . Assault . | . . . Garrison . | . . . Intercept . | . . . Searches Triggered . | . . . Construction Impeded . | . . . Haulers Reinforced . | . . . Active Scanning Responses . | . . . Cargo Convoy Interrupts . | . . . Stealth | -11 -10 -9 --------- Run | Yrd Mat Mat Distress Signals 1 | . . 1 Communications Jammed . | . . . Distress Signals . | . . . Times Spotted 24 | . 7 17 Peak Tracking Total 6 | . 2 6 Tactical Retreats . | . . . Traps | -11 -10 -9 ------- Run | Yrd Mat Mat Traps Triggered . | . . . Indirectly . | . . . Trap Hack Attempts . | . . . Triggered . | . . . Disarmed . | . . . Reprogrammed . | . . . Reused . | . . . Traps Extracted . | . . . Installed . | . . . Triggered . | . . . Machines | -11 -10 -9 ---------- Run | Yrd Mat Mat Machines Disabled 2 | . . 2 Max in Single Turn 1 | . . 1 Machines Repaired . | . . . Machines Dismantled . | . . . Machines Sabotaged . | . . . Overloaded Fab Kills . | . . . Hacking | -11 -10 -9 --------- Run | Yrd Mat Mat Machines Accessed 6 | . 5 1 Terminals 6 | . 5 1 Fabricators . | . . . Repair Stations . | . . . Recycling Units . | . . . Scanalyzers . | . . . Garrison Access . | . . . Total Hacks 13 | . 11 2 Successful 8 | . 7 1 Failed 5 | . 4 1 Catastrophic . | . . . Database Lockouts . | . . . Manual 13 | . 11 2 Terminals 13 | . 11 2 Fabricators . | . . . Repair Stations . | . . . Recycling Units . | . . . Scanalyzers . | . . . Garrison Access . | . . . Terminal Hacks 1 | . 1 . Locate Traps 1 | . 1 . Fabricator Hacks . | . . . Repair Station Hacks . | . . . Recycling Unit Hacks . | . . . Scanalyzer . | . . . Garrison Access Hacks . | . . . Unauthorized Hacks 7 | . 6 1 Terminals 7 | . 6 1 Assimilate 1 | . 1 . Botnet 5 | . 4 1 Operators 1 | . 1 . Fabricators . | . . . Repair Stations . | . . . Recycling Units . | . . . Scanalyzers . | . . . Garrison Access . | . . . Data Cores Recovered . | . . . Used . | . . . Hacking Detections 3 | . 3 . Full Trace Events 1 | . 1 . Feedback Events . | . . . Feedback Blocked . | . . . Robot Schematics Acquired . | . . . Robots Built . | . . . Authchips . | . . . Time . | . . . Total Robot Build Rating . | . . . Part Schematics Acquired . | . . . Parts Built . | . . . Authchips . | . . . Time . | . . . Total Part Build Rating . | . . . Parts Repaired . | . . . Time . | . . . Parts Recycled . | . . . Recycled Matter . | . . . Retrieved Matter . | . . . Retrieved Components . | . . . Parts Scanalyzed . | . . . Part Schematics Acquired . | . . . Parts Damaged . | . . . Bothacking | -11 -10 -9 ------------ Run | Yrd Mat Mat Used RIF Installer . | . . . Robots Hacked . | . . . Non-combat . | . . . Combat . | . . . Robot Hacks Applied . | . . . Relay Couplers Released . | . . . Fabnet Peak Effective % . | . . . Robots Rewired . | . . . Allies Hacked . | . . . Hacks Repelled . | . . . Allies | -11 -10 -9 -------- Run | Yrd Mat Mat Total Allies . | . . . Largest Group . | . . . Highest-Rated Group . | . . . Highest-Rated Ally . | . . . Total Orders . | . . . Ally Attacks . | . . . Total Damage . | . . . Kills . | . . . Allies Corrupted . | . . . Allies Melted . | . . . Intel | -11 -10 -9 ------- Run | Yrd Mat Mat Robot Analysis Total . | . . . Derelict Logs Recovered . | . . . Drone Launches . | . . . Drone Recoveries . | . . . Exploration | -11 -10 -9 ------------- Run | Yrd Mat Mat Turns Passed 1217 | 116 555 546 Spaces Moved 848 | 83 515 250 Core 9 | 8 . 1 Treads . | . . . Legs . | . . . Wheels 839 | 75 515 249 Hover . | . . . Flight . | . . . Fastest Speed 50 | 50 80 116 Average Speed 98 | 78 88 125 Slowest Speed 1500 | 100 140 1500 Overloaded Moves . | . . . Propulsion Burnouts . | . . . Robots Hopped . | . . . Cave-ins Triggered . | . . . Exploration Rate (%) 28 | 5 63 18 Regions Visited 2 Branch Regions . Pre-discovered Areas . | . . . Known Exits Taken . | . . . Unknown Exits Taken 2 | 1 1 . Scrap Searched . | . . . Spaces Dug 1 | . 1 . Terrain Destroyed 43 | . 1 42 Melee 1 | . 1 . Projectile . | . . . AOE 42 | . . 42 Terrain Rammed . | . . . Walls Destroyed . | . . . Machines Disabled . | . . . Actions | -11 -10 -9 --------- Run | Yrd Mat Mat Total 1133 | 110 583 440 Wait 154 | 3 12 139 Move 846 | 82 514 250 Hop . | . . . Pick Up 25 | 6 11 8 Fast Attach 13 | 6 6 1 Attach 11 | 1 . 10 Detach 1 | . . 1 Swap 12 | 1 7 4 Drop 19 | . 15 4 Fire 50 | 11 17 22 Melee 2 | . 1 1 Ram . | . . . Kick . | . . . Crush . | . . . Escape Stasis . | . . . Rewire . | . . . Trap . | . . . Miscellaneous . | . . . Route ------- -11/Scrapyard -10/Materials (discovered 2 exits: *Mat x2) -9/Materials History --------- Turn | Location | Event 2 | -11/Scrapyard | Met Revision 17 22 | -11/Scrapyard | Discovered new exit (range 15) 117 | -11/Scrapyard | Entered Materials 309 | -10/Materials | Build established: Mutant 421 | -10/Materials | Discovered new exit (range 15) 623 | -10/Materials | Discovered new exit (range 12) 672 | -10/Materials | Entered another Materials area 672 | -9/Materials | Evolved 2 slots: Propulsion x1, Utility x1 1194 | -9/Materials | Core integrity fell below 50% 1213 | -9/Materials | Core integrity fell below 20% 1218 | -9/Materials | Destroyed by G-34 Mercenary with Small Laser Last Messages --------------- 01165_ Sensor Array destroyed. 01168_ Grenade Launcher destroyed. 01170_ U-05 Engineer builds a Wall. 01171_ Wheel destroyed. 01173_ Com. Wheel destroyed. 01174_ R-06 Scavenger collects Aluminum Leg. 01176_ System corrupted: Heat flow error (+196). 01191_ Destroyed Visual Processing Unit. 01191_ W-16 Scout system corrupted by crushing effect. 01192_ W-16 Scout system terminally corrupted. 01192_ Signal Interpreter fried. 01192_ Lgt. Ion Engine fried. 01192_ Hover Unit fried. 01193_ Acquired 19 matter. 01194_ System corrupted: Heat flow error (+286). 01196_ Acquired 31 matter. 01197_ Wheel destroyed. 01207_ Hvy. Ion Engine destroyed. 01218_ #H1XXQ63DUMMWH BYPVNRMYW3N7EGIOK DJ9<92 01218_ Critical hit (Burn: +37). Map ----- +----------------------------------------------------+ | ??# """ /??????????????????????? | | ??# """ #??????????????????????? | | ??# #??????????????????????? | | ??# [=#?#+########???????????? | | ??# = %# #??????????? | | ??# [[*[=/ """????????????? | | ??# /!%[%*" "Y"????????????? | | ##### =[[[=# """ #??????????? | | ###### #!# #? """ #??????????? | | # #[## """ ????????????????? | | # """ # ### ?????????????????? | | # "R" # ####+####????????????????? | | # " " / # ??????????????????? | | # # # ??????????????????? | | ######## t# ??????????????????? | | ######## # ??????????????????? | | ########+## # ??????????????????? | | ## # # ??????????????????? | | ## # g # ??????????????????? | | ## # # ??????????????????? | | ## #YY # ## ????????? | | ########### #####+##### ????????? | | ####### ???????? | | ?????## %ss ???????? | | ?????## %s ???????? | | ?????#####@####### #### ????????? | | ?????## % # #### ????????? | | ?????## # # ? ##???????????? | | ?????## # # ? ##???????????? | | ?????## # # ##???????????? | | ?????## # # ##???????????? | | ?????## ]]]# # ##???????????? | | ?????## ]] ### ##???????????? | | ?????## ]] ### ##???????????? | | ?????## ### ##???????????? | | ?????######+######^ ^##???????????? | | ?????###### ^ ##???????????? | | ?????????## % ##???????????? | | ?????????## % # ???????????? | | ????#########%######## ???????????? | | ????#########+######## ???????????? | | ????## ###?????????????????? | | ????## """ ######## ???????????? | | ????## """ ######## ???????????? | | ????## """ ## # ???????????? | | ????## ## [# ???????????? | | ????## "" ## ##???????????? | | ????## "T ## """!##???????????? | | ????## "" ## """ ##???????????? | | ????## ## """ ##???????????? | +----------------------------------------------------+ Best States ------------- Heat Dissipation 28 Energy Generation 14 Energy Capacity 280 Matter Stores 300 Matter Capacity 300 Sight Range 16 Robot Scan Range 14 Terrain Scan Range 16 Terrain Scan Density 10 ECM Strength 1 Evasion (%) 44 Item Schematics ----------------- None Robot Schematics ------------------ None Fabricated ------------ Nothing Alien Tech Used ----------------- None Achievements -------------- None Challenges ------------ None Game ------ Seed MagneticMetaShockpuncher Manual? 0 Play Time 00:26:22 Cumulative 97.4 hours Start 2024.03.17 @ 15:18:54 End 2024.03.17 @ 15:42:18 Sessions 1 Manual Loads 0 Difficulty Rogue Special Mode None Game No. 33 Rogue 33 Adventurer 0 Explorer 0 Win Type - Total 0 Types 0/0/0/0/0/0/0/0/0 Lore% 27 Gallery% 41 Achievement% 33 Wizard Run 0 Options --------- Layout 0 ASCII 0 Keyboard 0 Movement Mouse Keybinds 0 Fullscreen 2 Font 36/Smallcaps Map View 76x50 Zoom Use 0% Tactical HUD 1 Map Filters NONE Filters NONE Steam X RUN: 0fe43432-1a15-4d0e-97fb-029ea9bd2bfc